[Event "FIDE WY-U16 Olympiad 2022"]
[Site "Nakhchivan"]
[Date "2022.10.02"]
[Round "1.25"]
[White "Caputcuoglu, Zeki Berke"]
[Black "Levitan, Caleb Levi"]
[Result "1-0"]
[ECO "B42"]
[WhiteElo "2370"]
[BlackElo "2063"]
[Annotator "TA"]
[PlyCount "191"]
[EventDate "2022.10.02"]
[EventType "team-tourn"]
[EventCountry "AZE"]
[SourceTitle "playchess.com"]
[Source "ChessBase"]
[SourceQuality "1"]
[WhiteTeam "Turkey"]
[BlackTeam "South Africa"]
[WhiteTeamCountry "TUR"]
[BlackTeamCountry "RSA"]
[TimeControl "40/5400+30:1800+30"]

{[%evp 14,191,52,63,58,46,54,16,20,17,23,22,14,11,10,20,20,18,15,21,17,20,47,50,50,50,50,48,45,47,64,54,57,59,54,52,49,50,50,0,60,60,49,35,53,43,43,0,0,0,0,0,0,0,0,0,0,0,0,0,0,0,0,-6,13,13,13,13,13,13,13,13,55,13,13,0,55,13,13,13,13,13,72,64,65,67,67,0,67,0,75,0,78,0,0,0,60,60,65,8,8,-118,-119,-127,-129,-182,-166,-546,-77,-77,-8,-10,-8,-8,-8,-10,0,0,541,516,1279,1264,1278,1264,1128,1269,1412,1266,991,906,715,679,634,613,734,814,742,700,660,457,1043,1000,2760,2618,1981,1270,29966,29967,29967,29967,29964,29965,6518,6163,29973,29974,29974,29956,7504,7504,29970,29971,29970,5658,2695,0,29965,29965,29975,29976,29976,29977,29976,29978,29979,29980,29980,29980,29992,29990]} 1. e4 {[%emt 0:00:06]} c5 {[%emt 0:00:10]} 2. Nf3 {[%emt 0:00:05]} e6 {[%emt 0:00:11]} 3. d4 {[%emt 0:00:29]} cxd4 {[%emt 0:00:09]} 4. Nxd4 {[%emt 0:00:04]} a6 {[%emt 0:00:12]} 5. Bd3 {[%emt 0:01:10]} Bc5 {[%emt 0:00:24]} 6. Nb3 {[%emt 0:00:06]} Ba7 {[%emt 0:00:05]} 7. O-O {[%emt 0:00:09]} Nc6 {[%emt 0:00:35]} 8. Qg4 {[%emt 0:02:51]} Qf6 {[%emt 0:01:03] B42: Sicilian: Kan Variation: 5 Bd3.} 9. Nc3 {[%emt 0:05:42]} Nge7 {[%emt 0:11:39]} 10. Kh1 {[%emt 0:02:23]} (10. Bg5 $5 {[%cal Rg5f6]} Qg6 11. Qh4 $14) 10... Ne5 {[%emt 0:03:32] The position is equal.} 11. Qe2 {[%emt 0:04:56]} Nxd3 {[%emt 0:04:16]} 12. cxd3 {[%emt 0:00:05] [#]} O-O $146 {[%emt 0:00:31]} ({Predecessor:} 12... d6 13. Be3 O-O 14. f4 b5 15. Bxa7 Rxa7 16. Qe3 Rc7 17. Qb6 Rd7 18. Na5 e5 19. fxe5 Qxe5 {0-1 (87) Vignesh,N (2156)-Karthikeyan,M (2325) Nagpur 2012}) 13. Be3 {[%emt 0:02:47]} Bxe3 {[%emt 0:04:30]} 14. Qxe3 {[%emt 0:00:14]} d5 {[%emt 0:02:08]} 15. e5 {[%emt 0:05:26]} Qg6 {[%emt 0:01:31]} 16. Nd4 {[%emt 0:04:28]} Bd7 {[%emt 0:03:05]} 17. f4 {[%emt 0:05:36]} Nf5 {[%emt 0:03:02]} 18. Nxf5 {[%emt 0:01:19]} Qxf5 {[%emt 0:00:06]} 19. Ne2 {[%emt 0:00:11]} Rac8 {[%emt 0:03:53]} 20. Nd4 {[%emt 0:02:01]} Qg6 {[%emt 0:01:18]} 21. Rf3 {[%emt 0:02:16]} f5 {[%emt 0:03:52]} 22. Rff1 {[%emt 0:04:02]} Qe8 {[%emt 0:02:18]} 23. Rac1 {[%emt 0:09:47]} Qe7 {[%emt 0:02:55]} 24. Qd2 {[%emt 0:00:47]} Rc5 {[%emt 0:04:00]} 25. Nb3 {[%emt 0:07:17]} Rcc8 {[%emt 0:01:27]} 26. Nd4 {[%emt 0:06:35]} (26. a3 $14) 26... b6 {[%emt 0:02:51]} (26... Rc5 $1 $11) 27. Rxc8 {[%emt 0:02:24]} Rxc8 {[%emt 0:00:29]} 28. Rc1 {[%emt 0:00:34]} Rc5 {[%emt 0:03:31]} 29. a3 {[%emt 0:07:16]} a5 {[%emt 0:04:45]} 30. Rxc5 {[%emt 0:06:12]} bxc5 $14 {[%emt 0:02:26][%mdl 4096] Endgame KQB-KQN} 31. Nf3 {[%emt 0:01:14]} Qd8 {[%emt 0:00:33]} 32. Qc3 {[%emt 0:08:27]} Qb6 {[%emt 0:01:11]} 33. d4 {[%emt 0:03:08]} c4 {[%emt 0:01:16]} 34. h3 {[%emt 0:00:46]} Be8 {[%emt 0:08:42]} 35. Nd2 {[%emt 0:02:37]} Ba4 {[%emt 0:01:53]} 36. Nf1 {[%emt 0:00:35]} h6 {[%emt 0:05:45]} 37. Qd2 {[%emt 0:01:40]} Qb3 {[%emt 0:04:19][%cal Oc4c3] Black wants to play ...c3!} 38. Kh2 {[%emt 0:01:27]} Qd1 {[%emt 0:01:40]} 39. Qxd1 {[%emt 0:00:42]} Bxd1 $11 {[%emt 0:00:09] KB-KN} 40. Ne3 {[%emt 0:00:36]} Ba4 {[%emt 0:00:26]} 41. g4 {[%emt 0:30:57]} g6 {[%emt 0:30:26]} 42. Kg3 {[%emt 0:00:45]} Kf7 {[%emt 0:00:23]} 43. Kh4 {[%emt 0:00:00]} Kg7 {[%emt 0:00:00]} 44. Kg3 {[%emt 0:00:00]} Kf7 {[%emt 0:00:00]} 45. Kf2 {[%emt 0:00:00]} Ke7 {[%emt 0:00:00]} 46. Ke2 {[%emt 0:00:00]} Kd8 {[%emt 0:00:00]} 47. Kd2 {[%emt 0:00:00]} Kc7 {[%emt 0:00:00]} (47... Ke7 $11 {keeps the balance.}) 48. Ng2 {[%emt 0:00:00]} Kb6 {[%emt 0:00:00]} 49. Nh4 {[%emt 0:00:00]} Be8 {[%emt 0:00:00]} 50. Kc3 {[%emt 0:00:00]} (50. g5 $1 $14 h5 51. Kc3) 50... Kc6 {[%emt 0:00:00]} (50... fxg4 $11 51. hxg4 h5) 51. Nf3 {[%emt 0:00:00]} (51. g5 $1 $14 hxg5 52. fxg5) 51... Kb6 {[%emt 0:00:00]} (51... fxg4 $11 52. hxg4 Kc7) 52. Nd2 {[%emt 0:00:00]} (52. g5 $1 $16 {[%cal Rg5h6]} h5 53. b3) 52... Ba4 {[%emt 0:00:00] [#]} (52... fxg4 $1 $11 {remains equal.} 53. hxg4 h5) 53. Nf1 {[%emt 0:00:00]} (53. g5 $1 $16 {[%cal Rg5h6]} h5 54. b3 Bxb3 55. Nxb3 cxb3 56. Kxb3) 53... Bd1 {[%emt 0:00:00]} 54. Nh2 {[%emt 0:00:00]} Ka6 {[%emt 0:00:00]} (54... fxg4 $11 55. Nxg4 Bxg4 56. hxg4 h5) 55. Kd2 $14 {[%emt 0:00:00]} Ba4 {[%emt 0:00:00]} 56. h4 {[%emt 0:00:00]} (56. g5 $14 h5 57. Nf3) 56... Be8 $11 {[%emt 0:00:00]} 57. h5 {[%emt 0:00:20]} (57. Kc3 $11) 57... fxg4 $17 {[%emt 0:00:00]} ({Worse is} 57... gxh5 58. gxf5 exf5 59. Nf3 $11) 58. Nxg4 {[%emt 0:00:47]} gxh5 {[%emt 0:00:00]} 59. Nxh6 {[%emt 0:02:07]} (59. Nf2 $17) 59... Bg6 $19 {[%emt 0:03:42] Hoping for ...Kb5.} 60. Ng8 $2 {[%emt 0:03:30]} (60. Ke3 {is tougher.}) 60... Kb6 $2 {[%emt 0:04:41]} (60... h4 $19 {and Black stays clearly on top.} 61. Nf6 Bf5) 61. Ne7 $17 {[%emt 0:00:55]} Be4 {[%emt 0:00:08]} (61... Bh7 $17 {Threatens to win with ...h4.} 62. Nc8+ Kb5) 62. Ke3 $11 {[%emt 0:00:55] And now Nc8+ would win.} Kc7 {[%emt 0:00:45] Prevents Nc8.} 63. Ng8 $1 {[%emt 0:00:26]} h4 {[%emt 0:01:52]} 64. Kf2 $1 {[%emt 0:02:35]} Kd8 {[%emt 0:00:29]} 65. Kg1 {[%emt 0:00:37]} Bf5 $2 {[%emt 0:00:56][%mdl 8192]} (65... Ke8 $11 {and Black stays safe.}) 66. Kh2 $18 {[%emt 0:00:14] aiming for Nh6.} Ke8 {[%emt 0:00:26] [#]} (66... Kd7 $142 67. Nh6 Bg6) 67. Nh6 $1 {[%emt 0:00:07]} Bd3 {[%emt 0:02:06]} 68. Kh3 {[%emt 0:00:06]} Kf8 {[%emt 0:00:05]} 69. Kxh4 {[%emt 0:00:03]} Kg7 {[%emt 0:00:05]} 70. Kg5 {[%emt 0:00:04]} Bc2 {[%emt 0:01:02]} 71. Ng4 {[%emt 0:01:15]} Kf7 {[%emt 0:00:32]} 72. Nf6 {[%emt 0:01:01]} Ke7 {[%emt 0:00:15]} 73. f5 {[%emt 0:00:52] Strongly threatening Ng8+.} Bxf5 {[%emt 0:01:59] [#]} 74. Nxd5+ $1 {[%emt 0:00:14][%mdl 512]} Kf7 {[%emt 0:00:10]} 75. Nb6 {[%emt 0:00:48]} Bd3 {[%emt 0:00:11]} 76. Nd7 {[%emt 0:00:21]} Be4 {[%emt 0:01:09]} (76... Ke7 $142 77. Nc5 Bf1) 77. Kf4 {[%emt 0:00:27]} Bc6 {[%emt 0:00:23]} 78. Nb6 {[%emt 0:00:31]} Bb5 {[%emt 0:00:07]} 79. Ke3 {[%emt 0:00:12]} Ke7 {[%emt 0:00:16]} 80. Kd2 {[%emt 0:00:05]} Kd8 {[%emt 0:00:19]} 81. Kc3 {[%emt 0:00:05]} Kc7 {[%emt 0:00:10]} 82. Nxc4 {[%emt 0:00:05]} a4 {[%emt 0:00:02]} 83. Kb4 {[%emt 0:00:07]} Bd7 {[%emt 0:00:26]} 84. Kc5 {[%emt 0:00:17]} Bc6 {[%emt 0:00:37]} 85. Nd2 {[%emt 0:00:12]} Bd5 {[%emt 0:00:56]} 86. Nb1 {[%emt 0:00:06] White wants to mate with Nc3.} Bb3 {[%emt 0:00:08]} 87. Nc3 {[%emt 0:00:04]} Kd7 {[%emt 0:00:06]} 88. Ne4 {[%emt 0:01:12]} (88. Kb5 $142 Kc7 89. Nxa4 Bd5 90. Nc3 Bg2 91. a4 Kd8 92. Kc5 Bf3 93. b4) 88... Bc2 {[%emt 0:00:40]} 89. Nc3 $2 {[%emt 0:00:16]} (89. Nd6 $18 Ke7 90. Nb5) 89... Kc7 $2 {[%emt 0:00:21][%mdl 8192]} (89... Bb3 $11 90. Kb5 Kc8 91. Nxa4 Bd1) 90. d5 {[%emt 0:01:15] White mates.} exd5 {[%emt 0:00:09]} 91. e6 {[%emt 0:00:08]} d4 {[%emt 0:00:41]} 92. Nd5+ {[%emt 0:00:03]} Kd8 {[%emt 0:00:10]} 93. Kxd4 {[%emt 0:00:05]} Bb3 {[%emt 0:00:09]} 94. Ke5 {[%emt 0:00:04]} Ke8 {[%emt 0:00:46]} 95. Kd6 {[%emt 0:00:04]} Bd1 {[%emt 0:00:13]} 96. Nf6+ {[%emt 0:00:07] Quite a comeback for White.  Weighted Error Value: White=0.23 (precise) /Black=0.27 (precise)} 1-0

[Event "FIDE WY-U16 Olympiad 2022"]
[Site "Nakhchivan"]
[Date "2022.10.02"]
[Round "1.25"]
[White "Soojay, Jorah"]
[Black "Baranciuc, Alexandr"]
[Result "1-0"]
[ECO "B07"]
[WhiteElo "1573"]
[BlackElo "2184"]
[Annotator "TA"]
[PlyCount "51"]
[EventDate "2022.10.02"]
[EventType "team-tourn"]
[EventCountry "AZE"]
[SourceTitle "playchess.com"]
[Source "ChessBase"]
[SourceQuality "1"]
[WhiteTeam "South Africa"]
[BlackTeam "Moldova"]
[WhiteTeamCountry "RSA"]
[BlackTeamCountry "MDA"]
[TimeControl "40/5400+30:1800+30"]

{[%evp 9,51,45,76,66,83,38,35,41,46,29,31,14,13,18,73,-7,0,-7,0,-18,-11,-69,-63,-68,-44,-67,-54,-55,-67,-87,-75,-104,0,0,95,102,118,118,1323,788,29998,0,1283,0]} 1. e4 {[%emt 0:00:02][%cal Be2e4,Be4e5][%mdl 32]} d6 {[%emt 0:00:30]} 2. d4 {[%emt 0:00:07]} Nf6 {[%emt 0:00:01]} 3. Nc3 {[%emt 0:00:07]} g6 {[%emt 0:00:02]} 4. Be3 {[%emt 0:00:12]} a6 {[%emt 0:00:23]} 5. h3 {[%emt 0:00:24]} b5 {[%emt 0:00:59]} 6. e5 $1 {[%emt 0:22:25] B07: Pirc Defence: Miscellaneous Systems.} Nfd7 7. f4 {[%emt 0:00:30] White is more active.} Bb7 {[%emt 0:06:00]} 8. Nf3 {[%emt 0:00:57] White is slightly better.} Bg7 {[%emt 0:00:30]} 9. Bd3 {[%emt 0:00:30]} O-O {[%emt 0:00:30]} 10. O-O {[%emt 0:00:30][%cal Oe5e6]} c5 {[%emt 0:00:30] [#]} 11. dxc5 $146 {[%emt 0:00:30]} (11. Be4 {looks sharper.} Bxe4 12. Nxe4 Nc6 13. c3) ({Predecessor:} 11. Be4 Bxe4 12. Nxe4 cxd4 13. Bxd4 Nc6 14. exd6 Nxd4 15. Nxd4 Qb6 16. c3 exd6 17. Kh1 {0-1 (59) Sadykov,R (2345)-Aitbayev,A (2475) Chess.com INT 2021}) 11... dxe5 {[%emt 0:00:30]} (11... Nxc5 $11 12. Bxc5 dxc5) 12. fxe5 {[%emt 0:00:30]} (12. f5 $1 $16) 12... Nxe5 $11 {[%emt 0:00:30]} 13. Nxe5 {[%emt 0:00:30]} Bxe5 {[%emt 0:00:30]} 14. Qe1 {[%emt 0:00:30]} Qc7 {[%emt 0:00:30]} 15. Rb1 {[%emt 0:00:30]} (15. b4 $11) 15... Nd7 $15 {[%emt 0:00:30]} (15... Qc6 16. Be4 Qc8 17. Nd5 Bxd5 18. Bxd5 $16) 16. b4 {[%emt 0:00:30]} Nf6 {[%emt 0:00:30]} (16... Qc6 17. Be4 Qc7 18. Bxb7 Qxb7 19. Rd1 $14) (16... f5 $5 {[%cal Rf5f4]} 17. Be2 f4 $17) 17. Bh6 {[%emt 0:00:30]} Nh5 {[%emt 0:00:30] ...Bh2+ is the strong threat.} (17... Qc6 18. Rf2 (18. Rf3 Qc7 $17) 18... Bd4 19. Be3 $11) 18. Ne2 {[%emt 0:00:30]} ({Avoid the trap} 18. Bxf8 $2 Bh2+ 19. Kh1 Ng3+ 20. Qxg3 Bxg3 $19) 18... Rfd8 {[%emt 0:00:30]} ({Don't do} 18... Qc6 19. Qf2 $14) 19. Qh4 {[%emt 0:00:30]} Rd7 {[%emt 0:00:30]} 20. Be4 {[%emt 0:00:30]} Bh2+ {[%emt 0:00:30]} (20... Bf6 $1 $17 {[%cal Rf6h4]} 21. Qg4 Rd4 $1) 21. Kh1 $11 {[%emt 0:00:30] Dancing on a razor blade.} Ng3+ {[%emt 0:00:30]} (21... Be5 $11) 22. Nxg3 $16 {[%emt 0:00:30]} Bxg3 {[%emt 0:00:30]} 23. Qg4 $40 {[%emt 0:00:30][%cal Of1f7][%mdl 128] And now Rxf7! would win. White goes for the king.} Rd4 $2 {[%emt 0:00:30][%mdl 8192] [#]} (23... Bxe4 $16 24. Qxe4 Rdd8) 24. Qf3 $1 {[%emt 0:00:30]} Rd7 (24... Bf4 25. Bxb7) 25. Qg4 {[%emt 1:00:27]} (25. Qxf7+ $142 Kh8 26. Bg7#) 25... Rd4 $18 {[%emt 1:17:33] [#]} 26. Qf3 $2 {[%emt 0:00:48][%mdl 32768] Weighted Error Value: White=0.49/Black=0.52. Loss on time!?} 1-0

[Event "FIDE WY-U16 Olympiad 2022"]
[Site "Nakhchivan"]
[Date "2022.10.02"]
[Round "1.26"]
[White "Cebotari, Stanislav"]
[Black "Chang, Sebastian"]
[Result "1-0"]
[ECO "A05"]
[WhiteElo "2047"]
[BlackElo "1430"]
[Annotator "TA"]
[PlyCount "77"]
[EventDate "2022.10.02"]
[EventType "team-tourn"]
[EventCountry "AZE"]
[SourceTitle "playchess.com"]
[Source "ChessBase"]
[SourceQuality "1"]
[WhiteTeam "Moldova"]
[BlackTeam "South Africa"]
[WhiteTeamCountry "MDA"]
[BlackTeamCountry "RSA"]
[TimeControl "40/5400+30:1800+30"]

{[%evp 10,77,32,-15,12,14,4,-13,4,-34,1,-26,0,0,8,-15,145,44,66,58,75,71,74,18,32,0,70,61,76,48,47,36,69,50,110,106,281,289,301,298,293,229,240,214,344,330,460,460,614,596,590,581,570,578,1378,1356,1462,1457,2269,2386,2690,2495,1835,1650,29988,29989,29989,29990,29990,29991]} 1. Nf3 {[%emt 0:00:23]} Nf6 {[%emt 0:07:49]} 2. g3 {[%emt 0:00:16]} Nc6 {[%emt 0:03:30]} 3. Bg2 {[%emt 0:00:10]} e5 {[%emt 0:03:03]} 4. d3 {[%emt 0:00:28]} Bc5 {[%emt 0:02:00]} 5. O-O {[%emt 0:00:10]} d5 {[%emt 0:02:53] [#]} 6. c3 {[%emt 0:01:44]} (6. Nxe5 $1 $14 {might be stronger.} Nxe5 7. d4) 6... O-O {[%emt 0:01:52] A07: Réti Opening: New York and Capablanca Systems.} 7. b4 {[%emt 0:00:42]} Bd6 {[%emt 0:03:25]} 8. a3 {[%emt 0:04:02] [#]} Re8 $146 {[%emt 0:10:35] The position is equal.} ({Predecessor:} 8... Bg4 9. h3 Be6 10. Nbd2 Qd7 11. Kh2 e4 12. dxe4 dxe4 13. Ng5 Bf5 14. Ndxe4 Be5 {1-0 (32) Kennedy,P-Yarur Elsaca,D (1730) Caleta 2011}) 9. Nbd2 {[%emt 0:03:16]} Bf5 {[%emt 0:15:23]} 10. Nb3 {[%emt 0:04:26]} Qe7 {[%emt 0:02:36]} 11. Nh4 {[%emt 0:02:03]} Be6 {[%emt 0:02:17]} 12. e4 {[%emt 0:06:26]} d4 $2 {[%emt 0:05:09] [#]} (12... dxe4 $11 13. dxe4 a5) 13. c4 {[%emt 0:00:56]} (13. b5 $1 $16 {[%cal Rb5c6]} Nd8 14. cxd4) 13... Qd7 {[%emt 0:01:12]} 14. f4 {[%emt 0:08:31] Hoping for f5.} Bh3 {[%emt 0:09:54]} 15. f5 {[%emt 0:02:10]} Bxg2 {[%emt 0:00:50]} 16. Kxg2 {[%emt 0:00:32]} (16. Nxg2 $16 a6 17. Nh4) 16... b6 {[%emt 0:02:41]} 17. h3 {[%emt 0:02:43]} Be7 {[%emt 0:01:17]} (17... a5 $11) 18. Nf3 $14 {[%emt 0:00:51] b5 is the strong threat.} Bf8 {[%emt 0:02:50]} 19. Bg5 {[%emt 0:00:44][%cal Bc1g5,Bg5h4,Bh4g3][%mdl 32]} Qe7 {[%emt 0:00:50]} 20. g4 {[%emt 0:00:34]} h6 {[%emt 0:00:21]} 21. Bh4 {[%emt 0:00:43]} Qd7 {[%emt 0:03:24]} ({Black should play} 21... a6 $14) 22. Bg3 $36 {[%emt 0:01:02][%mdl 2048] Black must now prevent b5. White is on the roll.} Qe7 $2 {[%emt 0:00:48] This move loses the game for Black.} (22... Bd6 $16 {is a better defense.}) 23. b5 $18 {[%emt 0:00:28]} Nd8 {[%emt 0:10:18]} 24. Nxe5 {[%emt 0:00:35]} Nd7 {[%emt 0:04:26]} 25. Nxd7 {[%emt 0:00:56]} Qxd7 {[%emt 0:00:10]} 26. Qf3 {[%emt 0:00:11]} c5 {[%emt 0:01:21]} (26... a6 $142 27. e5 Ra7) 27. e5 {[%emt 0:00:30]} Rc8 {[%emt 0:00:42]} 28. a4 {[%emt 0:00:13][%cal Ba3a4,Ba4a5][%mdl 32]} g6 {[%emt 0:01:15]} 29. a5 {[%emt 0:00:42]} Bg7 {[%emt 0:00:24]} 30. Rfe1 {[%emt 0:00:47]} gxf5 {[%emt 0:00:58]} 31. gxf5 {[%emt 0:00:27]} Nb7 {[%emt 0:01:10]} 32. axb6 {[%emt 0:02:41]} axb6 {[%emt 0:00:10]} 33. Ra7 {[%emt 0:00:04]} Rb8 {[%emt 0:00:46]} 34. e6 {[%emt 0:00:07]} Qe7 {[%emt 0:00:34]} 35. Bxb8 {[%emt 0:00:14]} Rxb8 {[%emt 0:00:12]} 36. f6 Bxf6 {[%emt 0:00:20]} 37. Qg3+ {[%emt 0:00:38] White mates.} Bg7 {[%emt 0:00:49]} 38. Qxb8+ {[%emt 0:00:14]} Kh7 {[%emt 0:00:21]} 39. Rxb7 {[%emt 0:00:11] Weighted Error Value: White=0.19 (very precise) /Black=0.56} 1-0

[Event "FIDE WY-U16 Olympiad 2022"]
[Site "Nakhchivan"]
[Date "2022.10.02"]
[Round "1.26"]
[White "Karsten, Jan"]
[Black "Taspinar, Yanki"]
[Result "1-0"]
[ECO "C50"]
[WhiteElo "1921"]
[BlackElo "2325"]
[Annotator "TA"]
[PlyCount "93"]
[EventDate "2022.10.02"]
[EventType "team-tourn"]
[EventCountry "AZE"]
[SourceTitle "playchess.com"]
[Source "ChessBase"]
[SourceQuality "1"]
[WhiteTeam "South Africa"]
[BlackTeam "Turkey"]
[WhiteTeamCountry "RSA"]
[BlackTeamCountry "TUR"]
[TimeControl "40/5400+30:1800+30"]

{[%evp 11,93,10,23,23,36,29,30,25,45,22,54,56,83,85,76,83,86,0,0,-29,91,-97,-24,-49,-18,-22,-38,-28,-31,-65,-54,-75,-83,-82,0,-69,0,0,0,0,279,276,376,291,427,356,359,293,303,303,303,301,303,297,289,275,350,319,497,429,425,0,486,471,511,504,658,653,864,864,840,837,29987,482,29988,29989,29989,29990,29990,29991,29991,29992,29992,29993]} 1. e4 {[%emt 0:00:08]} e5 {[%emt 0:00:16]} 2. Nf3 {[%emt 0:00:05]} Nc6 {[%emt 0:00:06]} 3. Bc4 {[%emt 0:00:14]} Nf6 {[%emt 0:00:40]} 4. d3 {[%emt 0:00:07]} Bc5 {[%emt 0:00:09]} 5. c3 {[%emt 0:00:04]} d6 {[%emt 0:00:29]} 6. O-O {[%emt 0:00:07]} a6 {[%emt 0:01:11]} 7. a4 {[%emt 0:00:08] C54: Giuoco Piano: 4 c3 Nf6, main lines with 5 d4 and 5 d3.} Ba7 {[%emt 0:00:29]} 8. Re1 {[%emt 0:00:10]} h6 {[%emt 0:02:03]} 9. Nbd2 {[%emt 0:00:20] White has an edge.} g5 {[%emt 0:06:30]} 10. b4 g4 {[%emt 0:03:52]} 11. Nh4 {[%emt 0:00:55]} Nxe4 {[%emt 0:04:25]} 12. Nxe4 {[%emt 0:03:51]} Qxh4 {[%emt 0:01:47]} 13. d4 {[%emt 0:21:00] Threatens to win with b5.} f5 {[%emt 0:10:22] [#]} 14. g3 $146 {[%emt 0:13:02]} (14. Ng3 $16) ({Predecessor:} 14. Ng3 f4 15. Bxf4 Rf8 16. Be3 Bd7 17. b5 Na5 18. Bd3 O-O-O 19. bxa6 b6 20. dxe5 dxe5 {1-0 (66) Ragger,M (2687)-Kovalev,V (2683) St Petersburg 2018}) 14... Qd8 {[%emt 0:43:08]} 15. Nd2 {[%emt 0:20:46]} e4 {[%emt 0:08:03] [#]} (15... Qf6 $1 $11 {keeps the balance.}) 16. Qb3 $2 {[%emt 0:12:36] [#]} (16. Nxe4 $1 $16 fxe4 17. Rxe4+ Ne7 18. Qe2) 16... Ne7 {[%emt 0:04:02]} (16... Qf6 $1 $17) 17. Bf7+ $11 {[%emt 0:07:45]} Kf8 {[%emt 0:00:27] aiming for ...d5.} 18. Bh5 {[%emt 0:01:17][%csl Gh5][%cal Rb3f7]} d5 {[%emt 0:07:19]} 19. Nxe4 {[%emt 0:07:30]} fxe4 {[%emt 0:02:11]} 20. Rxe4 {[%emt 0:00:06]} Bf5 {[%emt 0:01:46]} 21. Rf4 {[%emt 0:03:10] Strongly threatening Qc2.} Kg7 {[%emt 0:00:39]} 22. Bxg4 {[%emt 0:01:13]} Bg6 {[%emt 0:00:56]} (22... Qd7 $17 23. Qd1 Bxg4 24. Rxg4+ Ng6) 23. b5 {[%emt 0:01:41]} (23. Bd2 $11) 23... Rf8 {[%emt 0:00:35]} (23... Bb8 $15 24. bxa6 Rxa6) 24. Rxf8 {[%emt 0:00:19]} Qxf8 {[%emt 0:00:03]} 25. Ba3 {[%emt 0:01:06] Re1 is the strong threat.} Re8 $2 {[%emt 0:00:58][%mdl 8192] [#] White leaves nothing to chance now.} (25... Qf7 $1 $11 {and Black has nothing to worry.}) 26. Re1 $1 $18 {[%emt 0:00:31] Black must now prevent Bd7.} Be4 {[%emt 0:00:32]} 27. f3 {[%emt 0:00:40] Active counter play!} Bd3 {[%emt 0:00:31]} (27... Bf5 $142 28. Bh5 Bg6 29. Bxg6 Kxg6 30. Qc2+ Kf7 31. Qh7+ Qg7 32. Qxg7+ Kxg7) 28. Qd1 {[%emt 0:01:57]} Bf5 {[%emt 0:00:30]} 29. Bxf5 {[%emt 0:01:04]} Qxf5 {[%emt 0:00:01]} 30. Rxe7+ {[%emt 0:00:29]} Rxe7 {[%emt 0:00:01]} 31. Bxe7 {[%emt 0:00:11]} axb5 {[%emt 0:00:07]} 32. axb5 {[%emt 0:00:18][%mdl 4096] Endgame KQB-KQB} Qe6 {[%emt 0:01:21]} 33. Bb4 {[%emt 0:00:43]} Qe8 {[%emt 0:00:46]} 34. Qd3 {[%emt 0:00:48]} Kf6 {[%emt 0:00:43]} (34... Qe6 $142 35. Qd2 Bb6) 35. Qd2 {[%emt 0:00:55]} Kg6 {[%emt 0:00:30]} 36. Qd3+ {[%emt 0:00:31]} Kf6 $1 {[%emt 0:00:02]} 37. Kf2 {[%emt 0:00:40] And now Qh7 would win.} Qd7 {[%emt 0:00:37] Against Qh7} 38. Qe3 {[%emt 0:00:40]} Kg6 {[%emt 0:00:40]} 39. Bf8 {[%emt 0:01:21]} Kf7 {[%emt 0:00:32]} 40. Qxh6 {[%emt 0:00:36]} Kg8 {[%emt 0:00:01]} 41. Bb4 {[%emt 0:30:31] White wants to mate with Qf8+.} Qxb5 {[%emt 0:30:08]} 42. Qg6+ {[%emt 0:00:20]} Kh8 {[%emt 0:00:01]} 43. Be7 {[%emt 0:00:57][%cal Re7f6] White mates.} Qb2+ {[%emt 0:00:00]} 44. Kg1 {[%emt 0:00:00][%cal Re7f6]} Bxd4+ {[%emt 0:00:00]} 45. cxd4 {[%emt 0:00:00]} Qxd4+ {[%emt 0:00:00]} 46. Kg2 {[%emt 0:00:00]} Qd2+ {[%emt 0:00:00]} 47. Kh3 {[%emt 0:00:00] Weighted Error Value: White=0.36/Black=0.55} 1-0